Cogmind - Beta 14 @@@ ROGUE MODE // 2024.08.26 @ 12:20:39 Player: DZKane Result: Destroyed by NW-EZM(R) with Subdweller Machine Gun Performance ------------- Evolutions (0) 0 Regions Visited (2) 400 Robots Destroyed (16) 80 Value Destroyed (424) 424 Prototype IDs (0) 0 Alien Tech Used (0) 0 Bonus (0) 0 TOTAL SCORE: 904 Bonus ------- None Cogmind --------- Core Integrity 0/250 Matter 267/300 Energy 250/250 System Corruption 0% Temperature Cool (0) Movement Rolling (150) Ox4 Location -10/Subcaves Parts ------- > --- POWER (1) -------- Ion Engine > --- PROPULSION (2) --- Subdweller Monowheel > --- UTILITY (2) ------ Huge Storage Unit Propulsion Shielding > --- WEAPON (2) ------- Assault Rifle Hammer > --- INVENTORY (25) --- Ion Engine Subdweller Power Source Small Storage Unit High-capacity Storage Unit Subdweller Optics Hacking Suite Tractor Beam Small Laser Subdweller Laser Assault Rifle Grenade Launcher Subdweller Shrapnel Launcher Subdweller Shrapnel Launcher Mining Laser Peak State ------------ > --- POWER ------------ Ion Engine > --- PROPULSION ------- Aluminum Leg Subdweller Monowheel > --- UTILITY ---------- Huge Storage Unit Propulsion Shielding > --- WEAPON ----------- Light Assault Rifle Light Assault Rifle > --- INVENTORY -------- Ion Engine Subdweller Power Source Small Storage Unit High-capacity Storage Unit Subdweller Optics Propulsion Shielding Hacking Suite Tractor Beam Small Laser Subdweller Laser Assault Rifle Assault Rifle Grenade Launcher Mining Laser Hammer [Rating: 10] Favorites ----------- Power Ion Engine Engine Ion Engine Propulsion Wheel Leg Aluminum Leg Wheel Wheel Utility Propulsion Shielding Storage Huge Storage Unit Protection Propulsion Shielding Weapon Light Assault Rifle Ballistic Gun Light Assault Rifle Impact Weapon Hammer Build | -11 -10 -10 ------- Run | Yrd Mat Sub Slots Evolved . | . . . Power . | . . . Propulsion . | . . . Utility . | . . . Weapon . | . . . Parts Attached 21 | 6 4 11 Power 3 | 1 1 1 Engine 3 | 1 1 1 Core . | . . . Reactor . | . . . Propulsion 4 | 2 . 2 Treads . | . . . Leg 1 | . . 1 Wheel 3 | 2 . 1 Hover . | . . . Flight . | . . . Utility 6 | 1 3 2 Device . | . . . Storage 4 | 1 2 1 Processor . | . . . Hackware . | . . . Protection 2 | . 1 1 Artifact . | . . . Weapon 8 | 2 . 6 Energy Gun . | . . . Energy Cannon . | . . . Ballistic Gun 6 | 2 . 4 Ballistic Cannon . | . . . Launcher . | . . . Special Weapon . | . . . Impact Weapon 2 | . . 2 Slashing Weapon . | . . . Piercing Weapon . | . . . Special Melee Weapon . | . . . Unidentified Prototypes . | . . . Parts Lost 8 | . . 8 Power 1 | . . 1 Propulsion 3 | . . 3 Utility 1 | . . 1 Weapon 3 | . . 3 Highest Loss Streak 4 | . . 4 To Critical Strikes . | . . . Average Slot Usage (%) 93 | . 99 85 Engine 13 | . 14 13 Wheel 22 | . 28 14 Storage 13 | . 14 13 Protection 13 | . 13 12 Ballistic Gun 26 | . 28 25 Impact Weapon 1 | . . 2 Peak Build Rating 10 | 6 8 10 Average Rating 7 | 4 7 7 On Entrance 4 | . 6 8 Naked Turns . | . . . Heaviest Build 90 | 13 89 90 Greatest Support 20 | 20 20 20 Greatest Overweight (x) 8 | . 4 8 Average Overweight (x) 3 | . 2 4 Largest Inventory Capacity 25 | 8 25 25 Average Capacity 22 | 7 22 24 Most Carried 15 | 1 11 15 Average Carried 9 | . 8 12 Final Capacity 25 | 8 25 25 Final Carried 14 | 1 11 14 Class Distribution -------------------- 100% | Mutant Dominant Class ---------------- Mutant | -10/Materials Mutant | -10/Subcaves Resources | -11 -10 -10 ----------- Run | Yrd Mat Sub Matter Collected 597 | 260 172 165 Remotely . | . . . Salvage Created 541 | . 268 273 Parts 33 | . 21 12 Haulers Intercepted 1 | . 1 . Recyclers Shooed . | . . . Parts Field Recycled . | . . . Retrieved Matter . | . . . Parts Self-Destructed 6 | . . 6 Prevented . | . . . Kills | -11 -10 -10 ------- Run | Yrd Mat Sub Combat Hostiles Destroyed 12 | . 6 6 Guns 12 | . 6 6 Classes Destroyed 6 | . 5 1 Hauler 1 | . 1 . Operator 1 | . 1 . Watcher 2 | . 2 . Swarmer 3 | . 3 . Grunt 7 | . 3 4 Subdweller 2 | . . 2 Best Kill Streak 2 | . 2 2 Combat Bots Only 2 | . 2 2 Max Kills in Single Turn 1 | . 1 1 Gunslinging . | . . . Exploded . | . . . Melee . | . . . Uniques/NPCs Destroyed . | . . . Combat | -11 -10 -10 -------- Run | Yrd Mat Sub Hostile Shots Fired 104 | . 29 75 Missed 28 | . 8 20 Damage Taken 1081 | . 200 881 Core 273 | . 89 184 Absorbed by Shields . | . . . Redirected to Shielding 54 | . 13 41 Core Remaining (%) 100 | 100 . . Volleys Fired 76 | . 33 43 Largest 2 | . 2 2 Hottest 40 | . 40 40 Shots Fired 150 | . 66 84 Gun 150 | . 66 84 Cannon . | . . . Launcher . | . . . Special . | . . . Kinetic 150 | . 66 84 Thermal . | . . . Explosive . | . . . Electromagnetic . | . . . Robot Hit Streak 20 | . 11 20 Robot Miss Streak 6 | . 3 6 Penetration Max . | . . . Secondary Targets 1 | . 1 . Max Gunslinging Chain 1 | . 1 . Shots Hit Robots 104 | . 40 64 Core Hits 37 | . 19 18 Critical Kills 1 | . . 1 Critical Parts Destroyed 1 | . . 1 Critical Strikes 2 | . . 2 Destroy 2 | . . 2 Melee Attacks 13 | . . 13 Impact 13 | . . 13 Slashing . | . . . Piercing . | . . . Sneak Attacks . | . . . Combat Hostiles . | . . . Follow-up Attacks . | . . . Damage Inflicted 1027 | . 405 622 Guns 926 | . 405 521 Cannons . | . . . Explosions . | . . . Melee 101 | . . 101 Ramming . | . . . Kinetic 926 | . 405 521 Thermal . | . . . Explosive . | . . . Electromagnetic . | . . . Impact 101 | . . 101 Slashing . | . . . Piercing . | . . . Highest Corruption . | . . . Average Corruption . | . . . Corruption Purged . | . . . Corruption Blocked . | . . . Overload Shots . | . . . Overflow Damage . | . . . Projectiles . | . . . Explosions . | . . . Melee . | . . . Knockbacks . | . . . Impact . | . . . Kinetic . | . . . Secondary . | . . . Self-Inflicted Damage . | . . . Shots . | . . . Rammed . | . . . Targets Rammed . | . . . Kicked . | . . . Crushed . | . . . Highest Temperature 7 | . 6 7 Average Temperature 6 | . 6 7 Received Heat Transfer 468 | . 63 405 Siege Activations . | . . . Robots Corrupted . | . . . Combat Hostiles . | . . . Parts Fried . | . . . Impact Corruptions . | . . . Robots Melted . | . . . Combat Hostiles . | . . . Parts Melted . | . . . Heat Transferred . | . . . Parts Sabotaged . | . . . Parts Stolen . | . . . Parts Stripped . | . . . Power Chain Reactions . | . . . Alert | -11 -10 -10 ------- Run | Yrd Mat Sub Peak Influence 232 | . 232 . Initial . | . . . Average 59 | . 62 . Maximum Alert Level 1 | . 1 . Low Security (%) 95 | 100 95 . Level 1 4 | . 4 . Level 2 . | . . . Level 3 . | . . . Level 4 . | . . . Level 5 . | . . . High Security . | . . . Max Security . | . . . Squads Dispatched 3 | . 3 . Investigation 1 | . 1 . Extermination . | . . . Reinforcement 2 | . 2 . Assault . | . . . Garrison . | . . . Intercept . | . . . Searches Triggered . | . . . Construction Impeded . | . . . Haulers Reinforced . | . . . Active Scanning Responses . | . . . Cargo Convoy Interrupts . | . . . Stealth | -11 -10 -10 --------- Run | Yrd Mat Sub Distress Signals 1 | . 1 . Communications Jammed . | . . . Distress Signals . | . . . Times Spotted 22 | . 15 7 Peak Tracking Total 4 | . 4 2 Tactical Retreats 1 | . . 1 Traps | -11 -10 -10 ------- Run | Yrd Mat Sub Traps Triggered 1 | . 1 . Indirectly . | . . . Trap Hack Attempts . | . . . Triggered . | . . . Disarmed . | . . . Reprogrammed . | . . . Reused . | . . . Traps Extracted . | . . . Installed . | . . . Triggered . | . . . Machines | -11 -10 -10 ---------- Run | Yrd Mat Sub Machines Disabled . | . . . Max in Single Turn . | . . . Machines Repaired . | . . . Machines Dismantled . | . . . Machines Sabotaged . | . . . Overloaded Fab Kills . | . . . Hacking | -11 -10 -10 --------- Run | Yrd Mat Sub Machines Accessed 5 | . 5 . Terminals 4 | . 4 . Fabricators . | . . . Repair Stations . | . . . Recycling Units 1 | . 1 . Scanalyzers . | . . . Garrison Access . | . . . Total Hacks 14 | . 14 . Successful 6 | . 6 . Failed 8 | . 8 . Catastrophic 2 | . 2 . Database Lockouts . | . . . Manual 14 | . 14 . Terminals 11 | . 11 . Fabricators . | . . . Repair Stations . | . . . Recycling Units 3 | . 3 . Scanalyzers . | . . . Garrison Access . | . . . Terminal Hacks . | . . . Fabricator Hacks . | . . . Repair Station Hacks . | . . . Recycling Unit Hacks . | . . . Scanalyzer . | . . . Garrison Access Hacks . | . . . Unauthorized Hacks 6 | . 6 . Terminals 4 | . 4 . Botnet 2 | . 2 . Skim 2 | . 2 . Fabricators . | . . . Repair Stations . | . . . Recycling Units 2 | . 2 . Reject 1 | . 1 . Mask 1 | . 1 . Scanalyzers . | . . . Garrison Access . | . . . Data Cores Recovered . | . . . Used . | . . . Hacking Detections 4 | . 4 . Full Trace Events . | . . . Feedback Events . | . . . Feedback Blocked . | . . . Robot Schematics Acquired . | . . . Robots Built . | . . . Authchips . | . . . Time . | . . . Total Robot Build Rating . | . . . Part Schematics Acquired . | . . . Parts Built . | . . . Authchips . | . . . Time . | . . . Total Part Build Rating . | . . . Parts Repaired . | . . . Time . | . . . Parts Recycled . | . . . Recycled Matter . | . . . Retrieved Matter . | . . . Retrieved Components . | . . . Parts Scanalyzed . | . . . Part Schematics Acquired . | . . . Parts Damaged . | . . . Bothacking | -11 -10 -10 ------------ Run | Yrd Mat Sub Used RIF Installer . | . . . Robots Hacked . | . . . Non-combat . | . . . Combat . | . . . Robot Hacks Applied . | . . . Relay Couplers Released . | . . . Fabnet Peak Effective % . | . . . Robots Rewired . | . . . Allies Hacked . | . . . Hacks Repelled . | . . . Allies | -11 -10 -10 -------- Run | Yrd Mat Sub Total Allies . | . . . Largest Group . | . . . Highest-Rated Group . | . . . Highest-Rated Ally . | . . . Total Orders . | . . . Ally Attacks . | . . . Total Damage . | . . . Kills . | . . . Allies Corrupted . | . . . Allies Melted . | . . . Intel | -11 -10 -10 ------- Run | Yrd Mat Sub Robot Analysis Total . | . . . Derelict Logs Recovered 1 | . . 1 Drone Launches . | . . . Drone Recoveries . | . . . Exploration | -11 -10 -10 ------------- Run | Yrd Mat Sub Turns Passed 1574 | 43 914 617 Spaces Moved 703 | 43 386 274 Core 8 | 5 . 3 Treads . | . . . Legs . | . . . Wheels 695 | 38 386 271 Hover . | . . . Flight . | . . . Fastest Speed 50 | 50 80 110 Average Speed 129 | 76 118 155 Slowest Speed 200 | 80 140 200 Overloaded Moves . | . . . Propulsion Burnouts . | . . . Robots Hopped . | . . . Cave-ins Triggered . | . . . Exploration Rate (%) 32 | 3 77 18 Regions Visited 2 Branch Regions 1 Pre-discovered Areas 1 | . . 1 Known Exits Taken . | . . . Unknown Exits Taken 2 | 1 1 . Scrap Searched . | . . . Spaces Dug . | . . . Terrain Destroyed . | . . . Melee . | . . . Projectile . | . . . AOE . | . . . Terrain Rammed . | . . . Walls Destroyed . | . . . Machines Disabled . | . . . Actions | -11 -10 -10 --------- Run | Yrd Mat Sub Total 1203 | 50 783 370 Wait 364 | . 354 10 Move 701 | 42 385 274 Hop . | . . . Pick Up 24 | 2 7 15 Fast Attach 9 | 5 1 3 Attach 6 | 1 . 5 Detach . | . . . Swap 6 | . 3 3 Drop 4 | . . 4 Fire 76 | . 33 43 Melee 13 | . . 13 Ram . | . . . Kick . | . . . Crush . | . . . Escape Stasis . | . . . Rewire . | . . . Trap . | . . . Miscellaneous . | . . . Route ------- -11/Scrapyard -10/Materials (discovered 3 exits: [*Mat] / [*Min] / [*Sub]) -10/Subcaves History --------- Turn | Location | Event 11 | -11/Scrapyard | Discovered new exit (range 16) 44 | -11/Scrapyard | Entered Materials 302 | -10/Materials | Discovered new exit (range 8) 304 | -10/Materials | Build established: Mutant 468 | -10/Materials | Discovered new exit (range 4) 927 | -10/Materials | Discovered new exit (range 8) 958 | -10/Materials | Entered Subcaves 1085 | -10/Subcaves | Core integrity fell below 50% 1178 | -10/Subcaves | A swath of the cavern ceiling suddenly collapsed 1341 | -10/Subcaves | Core integrity fell below 20% 1391 | -10/Subcaves | Lost 4 parts (1n1u2w) 1438 | -10/Subcaves | A swath of the cavern ceiling suddenly collapsed 1499 | -10/Subcaves | Shifting Twisted Machinery released Sub. Shrapnel Launcher 1499 | -10/Subcaves | Shifting Twisted Machinery released Sub. Shrapnel Launcher 1557 | -10/Subcaves | Disturbed a concealed Subdweller 1558 | -10/Subcaves | Learned location of Zion (-6) 1575 | -10/Subcaves | Destroyed by NW-EZM(R) with Subdweller Machine Gun Last Messages --------------- 01358_ Lgt. Assault Rifle destroyed. 01360_ Aluminum Leg destroyed. 01362_ Critical hit (Burn: +37). 01363_ G-47 Trooper destroyed. 01367_ Subatomizers dissect the Particle Gun. 01372_ Acquired 50 matter. 01374_ Particle Gun fries itself beyond repair. A swath of the cavern ceiling suddenly collapses. Sub. Shrapnel Launcher falls loose from the Twisted Machinery. 01514_ Dropped Grenade Launcher. 01515_ Acquired Sub. Shrapnel Launcher. 01523_ Acquired Grenade Launcher. 01557_ NW-EZM(R) angrily emerges from the Twisted Machinery. 01558_ Acquired derelict log, extracted data. World map updated: -6/Zion. 01564_ NW-EZM(R) affixes Scrap Shield Fragment to Scrap Shield. Map ----- +----------------------------------------------------+ | ?????????????????????????????????????? | | ?????????????????????????????????????? | | ?????????????????????????????????????? | | ?????????????????????????????????????? | | ?????????????????????????????????????? | | ?????????????????????????????????????? | | ?????????????????????????????????????? | | ??????????????????####???? ?????????? | | ?????????????????? ??? ???????? | | ?????????????????? ?? ???????? | | ?????????????????? ??? #???????? | | ??????????????????# ??? ????????? | | ??????????????????# ??? ?????????? | | ?????????????????## ??? #?????????? | | ?????????????????# #??? ##????????? | | ?????????????????? #?## #???###??? | | ??????????????????# ### ##?# #??? | | ??????????????????# ## #??? | | ????????????????### #???? | | ???????????????## #????? | | ???????????????# ##???? | | ???????????????# #???? | | ???????????##?### #???? | | ??????????## ## " """#???? | | ??????????#$R<##< " ### """#???? | | ???????????# @ " #???###???? | | ??????????#$ # #< ### ##?????????? | | ??????????##$### #### #?????????? | | ???????????#???# ##?#" #??###????? | | ???????????????# ###?### #?## ##???? | | ???????????????# ##### " #### ##??? | | ???????????????# ##""""##" ## "#??? | | ???????????????####"# ##" # # " "#??? | | ????????????????????# ### " """ #??? | | ??????????????????###"##"" # " ##?? | | ??????????????????#""""### ## ""### | | ?????????????????#"## ##?#"## """ # | | ?????????????????#?###"### ## "" " # | | ??????????????????####""##""# "" " ## | | ??????????????????#"#"#### ###" " #? | | ???????????????????#"#"#?"" ?#### " ## | | ???????????????????#""##?? #?????# | | ??????????????????## ###??? ##????# | | ???????????????#####"#"#??? #???# | | ???????????????# ##" "##???? #??# | | ???????????????# #????? #### | | ???????????????## ##?????? ## | | ???????????????## ######???? ?# | | ??????????????## ### ##???# #??# | | ??????????????# #???# #### | +----------------------------------------------------+ Best States ------------- Heat Dissipation 25 Energy Generation 10 Energy Capacity 250 Matter Stores 300 Matter Capacity 300 Sight Range 16 Terrain Scan Density 10 Propulsion Shielding 33 Evasion (%) 44 Item Schematics ----------------- None Robot Schematics ------------------ None Fabricated ------------ Nothing Alien Tech Used ----------------- None Achievements -------------- None Challenges ------------ None Game ------ Seed ProjectionLinearBallwheel Manual? 0 Play Time 00:10:05 Cumulative 101.9 hours Start 2024.08.26 @ 12:10:48 End 2024.08.26 @ 12:20:39 Sessions 1 Manual Loads 0 Difficulty Rogue Special Mode None Game No. 74 Rogue 74 Adventurer 0 Explorer 0 Win Type - Total 2 Types 2/0/0/0/0/0/0/0/0 Lore% 50 Gallery% 55 Achievement% 48 Wizard Run 0 Options --------- Layout 1 ASCII 0 Keyboard 0 Movement Numpad Keybinds 0 Fullscreen 1 Font 24/Smallcaps Map View 50x35 Zoom Use 0% Tactical HUD 1 Map Filters NONE Filters NONE Steam 1 RUN: 310bb123-5e18-4a20-9db4-5345b8231799